fUST/lending_fUST_20241125
["ID","MTS","AMOUNT","RATE_DAILY","PERIOD"]
[343291719,1732547432570,-1062.41184332,0.000294,7]
[343291721,1732547432581,-1908.57721717,0.000294,7]
[343291729,1732547432659,-881.68120081,0.000294,7]
[343291731,1732547432671,-4750.35441627,0.000294,7]
[343291733,1732547432681,-431.44380895,0.00029543,2]
[343291735,1732547432691,-205.26467094,0.00029551,2]
[343291737,1732547432702,-431.44380894,0.00029558,2]
[343291739,1732547432712,-431.44380894,0.00029573,2]
[343291741,1732547432722,-431.44380894,0.00029588,2]
[343291743,1732547432732,-500.0,0.00029588,2]
[343291745,1732547432742,-431.44380894,0.00029602,2]
[343291747,1732547432751,-1750.37620488,0.00029609,2]
[343291749,1732547432760,-431.44380894,0.00029617,2]
[343291751,1732547432770,-431.44380894,0.00029632,2]
[343291753,1732547432779,-620.9,0.00029641,10]
[343291755,1732547432788,-500.0,0.00029643,2]
[343291757,1732547432797,-500.0,0.00029643,2]
[343291759,1732547432806,-500.0,0.00029643,2]
[343291761,1732547432816,-500.0,0.00029643,2]
[343291763,1732547432825,-500.0,0.00029643,2]
[343291765,1732547432834,-500.0,0.00029643,2]
[343291767,1732547432843,-500.0,0.00029643,2]
[343291769,1732547432852,-500.0,0.00029643,2]
[343291771,1732547432861,-500.0,0.00029643,2]
[343291773,1732547432871,-500.0,0.00029643,2]
[343291775,1732547432880,-500.0,0.00029643,2]
[343291777,1732547432894,-500.0,0.00029643,2]
[343291779,1732547432903,-500.0,0.00029643,2]
[343291780,1732547432912,-500.0,0.00029643,2]
[343291781,1732547432921,-500.0,0.00029643,2]
[343291783,1732547432930,-500.0,0.00029643,2]
[343291785,1732547432939,-500.0,0.00029643,2]
[343291787,1732547432948,-500.0,0.00029643,2]
[343291789,1732547432957,-500.0,0.00029643,2]
[343291791,1732547432966,-500.0,0.00029643,2]
[343291793,1732547432975,-500.0,0.00029643,2]
[343291795,1732547432984,-500.0,0.00029643,2]
[343291797,1732547432993,-500.0,0.00029643,2]
[343291799,1732547433002,-500.0,0.00029643,2]
[343291801,1732547433010,-500.0,0.00029643,2]
[343291803,1732547433019,-500.0,0.00029643,2]
[343291805,1732547433029,-500.0,0.00029643,2]
[343291807,1732547433038,-500.0,0.00029643,2]
[343291809,1732547433048,-500.0,0.00029643,2]
[343291811,1732547433057,-500.0,0.00029643,2]
[343291813,1732547433067,-500.0,0.00029643,2]
[343291815,1732547433076,-500.0,0.00029643,2]
[343291817,1732547433090,-500.0,0.00029643,2]
[343291819,1732547433099,-327.18528408,0.00029643,2]
[343291821,1732547433108,-500.0,0.00029643,2]
[343291823,1732547433118,-500.0,0.00029643,2]
[343291825,1732547433129,-500.0,0.00029643,2]
[343291827,1732547433147,-500.0,0.00029643,2]
[343291829,1732547433157,-500.0,0.00029643,2]
[343291831,1732547433167,-500.0,0.00029643,2]
[343291833,1732547433178,-500.0,0.00029643,2]
[343291835,1732547433188,-500.0,0.00029643,2]
[343291837,1732547433198,-500.0,0.00029643,2]
[343291839,1732547433207,-500.0,0.00029643,2]
[343291841,1732547433216,-500.0,0.00029643,2]
[343291843,1732547433225,-500.0,0.00029643,2]
[343291845,1732547433235,-500.0,0.00029643,2]
[343291847,1732547433244,-500.0,0.00029643,2]
[343291849,1732547433254,-500.0,0.00029643,2]
[343291851,1732547433264,-500.0,0.00029643,2]
[343291853,1732547433273,-500.0,0.00029643,2]
[343291855,1732547433283,-500.0,0.00029643,2]
[343291857,1732547433292,-500.0,0.00029643,2]
[343291859,1732547433303,-500.0,0.00029643,2]
[343291861,1732547433312,-500.0,0.00029643,2]
[343291863,1732547433322,-500.0,0.00029643,2]
[343291865,1732547433332,-500.0,0.00029643,2]
[343291867,1732547433341,-500.0,0.00029643,2]
[343291869,1732547433351,-489.45001098,0.00029643,2]
[343291871,1732547433360,-500.0,0.00029643,2]
[343291873,1732547433369,-500.0,0.00029643,2]
[343291875,1732547433378,-500.0,0.00029643,2]
[343291877,1732547433393,-500.0,0.00029643,2]
[343291879,1732547433406,-300.0,0.00029643,2]
[343291881,1732547433415,-500.0,0.00029643,2]
[343291883,1732547433424,-500.0,0.00029643,2]
[343291885,1732547433432,-500.0,0.00029643,2]
[343291887,1732547433441,-500.0,0.00029643,2]
[343291889,1732547433450,-500.0,0.00029643,2]
[343291891,1732547433459,-500.0,0.00029643,2]
[343291893,1732547433469,-500.0,0.00029643,2]
[343291895,1732547433478,-500.0,0.00029643,2]
[343291897,1732547433488,-500.0,0.00029643,2]
[343291899,1732547433497,-500.0,0.00029643,2]
[343291902,1732547433511,-500.0,0.00029643,2]
[343291904,1732547433521,-500.0,0.00029643,2]
[343291906,1732547433530,-500.0,0.00029643,2]
[343291908,1732547433539,-500.0,0.00029643,2]
[343291910,1732547433549,-500.0,0.00029643,2]
[343291912,1732547433558,-431.44380894,0.00029647,2]
[343291914,1732547433568,-308.17260554,0.0002965,2]
[343291916,1732547433577,-660.0,0.00029651,2]
[343291918,1732547433587,-162851.82632081,0.00029651,2]
[343291920,1732547433596,-222000.0,0.00029651,2]
[343291922,1732547433605,-500.0,0.00029673,2]
[343291924,1732547433615,-500.0,0.00029673,2]
[343291926,1732547433624,-500.0,0.00029673,2]
[343291928,1732547433634,-151.0,0.00029747,7]
[343291930,1732547433652,-245.293479,0.00029747,7]
[343291932,1732547433661,-245.293479,0.00029747,7]
[343291934,1732547433670,-245.293479,0.00029747,7]
[343291935,1732547433679,-245.293479,0.00029747,7]
[343291938,1732547433689,-245.293479,0.00029747,7]
[343291939,1732547433699,-245.293479,0.00029747,7]
[343291940,1732547433708,-245.293479,0.00029747,7]
[343291942,1732547433718,-245.293479,0.00029747,7]
[343291943,1732547433728,-245.293479,0.00029747,7]
[343291945,1732547433737,-245.293479,0.00029747,7]
[343291947,1732547433747,-245.293479,0.00029747,7]
[343291949,1732547433758,-245.293479,0.00029747,7]
[343291951,1732547433768,-245.293479,0.00029747,7]
[343291953,1732547433777,-245.293479,0.00029747,7]
[343291955,1732547433787,-245.293479,0.00029747,7]
[343291957,1732547433797,-245.293479,0.00029747,7]
[343291959,1732547433807,-245.293479,0.00029747,7]
[343291961,1732547433816,-245.293479,0.00029747,7]
[343291963,1732547433825,-245.293479,0.00029747,7]
[343291965,1732547433834,-245.293479,0.00029747,7]
[343291967,1732547433843,-151.0,0.00029747,7]
[343291969,1732547433852,-151.0,0.00029747,7]
[343291971,1732547433862,-220.825002,0.00029747,7]
[343291973,1732547433871,-151.636923,0.00029747,7]
[343291975,1732547433880,-431798.72956798,0.00029747,10]
[343291983,1732547433956,-1619.04875023,0.00029747,10]
[343291984,1732547433968,-1709999.99999428,0.00029747,10]
[343291985,1732547433979,-86005.10056,0.00029747,10]
[343292079,1732547438430,-150.01,0.00029609,2]
[343292080,1732547438440,-17007.49000049,0.00029747,10]
[343292081,1732547438452,-1712.5,0.00029747,10]
[343292082,1732547438463,-9909.85205038,0.00029747,10]
[343292083,1732547438474,-24119.1193128,0.00029747,10]
[343292084,1732547438485,-9590.00000001,0.00029747,10]
[343292085,1732547438497,-2875493.73163031,0.00029747,10]
[343292086,1732547438506,-227333.79314785,0.00029747,10]
[343292118,1732547440079,-151.0,0.00029747,7]
[343292121,1732547440089,-3681.005,0.00029747,10]
[343292123,1732547440099,-287.61,0.00029747,10]
[343292125,1732547440113,-341.46,0.00029747,10]
[343292426,1732547443438,-9542.86,0.00029747,10]
[343292427,1732547443487,-490.0,0.00029747,10]
[343292428,1732547443499,-136255.8958747,0.00029747,10]
[343292430,1732547443511,-33999.88321517,0.00029747,10]
[343292432,1732547443522,-26110.47114494,0.00029747,10]
[343292434,1732547443533,-5769.83451167,0.00029747,10]
[343292437,1732547443544,-5044.04625641,0.00029747,10]
[343292439,1732547443555,-10285.29999999,0.00029747,10]
[343292442,1732547443566,-8670.41390238,0.00029747,10]
[343292445,1732547443577,-56443.87168958,0.00029747,10]
[343292702,1732547446213,-191.55506831,0.00029672,2]
[343292704,1732547446223,-1750.37620489,0.00029672,2]
[343292706,1732547446233,-17258.26872679,0.00029747,10]
[343292742,1732547446568,-323837.87681615,0.00029747,10]
[343292744,1732547446579,-304.2974875,0.00029747,10]
[343292747,1732547446591,-23966.95897512,0.00029747,10]
[343292749,1732547446603,-68373.74552373,0.00029747,10]
[343292751,1732547446615,-426.86163653,0.00029747,10]
[343293391,1732547454226,859.70398669,0.00026,2]
[343293507,1732547733334,163.538845,0.00013973,2]
[343293509,1732547905289,-500.0,0.00028751,120]
[343293510,1732547905313,-500.0,0.00028751,120]
[343293511,1732547905337,-300.0,0.00028751,120]
[343293515,1732548041898,150.0,0.000258,2]
[343293550,1732548400180,-200.0,0.00028751,120]
[343293551,1732548400210,-500.0,0.00028751,120]
[343293552,1732548400238,-253.94056877,0.00028751,120]
[343293553,1732548400277,-246.05943123,0.00028751,120]
[343293554,1732548400304,-500.0,0.00028751,120]
[343293555,1732548400331,-526.6,0.00028751,120]
[343293556,1732548400426,-200.0,0.0003,120]
[343293558,1732548400451,-24461.11989324,0.0003,100]
[343293559,1732548400520,-200.0,0.00030136,120]
[343293560,1732548400574,-152.3714977,0.00029753,30]
[343293561,1732548400599,-152.3714977,0.00029753,30]
[343293562,1732548400623,-152.3714977,0.00029753,30]
[343293563,1732548400646,-152.3714977,0.00029753,30]
[343293564,1732548400671,-152.3714977,0.00029753,30]
[343293565,1732548400696,-304.7429954,0.00029753,30]
[343293566,1732548400719,-153.0,0.00029753,30]
[343293567,1732548400747,-212.7413024,0.00029753,30]
[343293568,1732548400778,-153.0,0.00029753,30]
[343293569,1732548400803,-153.0,0.00029753,30]
[343293570,1732548400829,-212.7413024,0.00029753,30]
[343293571,1732548400856,-153.0,0.00029753,30]
[343293572,1732548400886,-153.0,0.00029753,30]
[343293573,1732548401030,-212.7413024,0.00029753,30]
[343293574,1732548401055,-212.7413024,0.00029753,30]
[343293575,1732548401079,-287.7163651,0.00029753,30]
[343293576,1732548401104,-425.4826048,0.00029753,30]
[343293577,1732548401128,-169.8196456,0.00029753,30]
[343293578,1732548401152,-212.7413024,0.00029753,30]
[343293579,1732548401176,-451.7842529,0.00029753,30]
[343293580,1732548401213,-152.3714977,0.00029753,30]
[343293581,1732548401243,-212.7413024,0.00029753,30]
[343293582,1732548401273,-152.3714977,0.00029753,30]
[343293583,1732548401299,-152.3714977,0.00029753,30]
[343293584,1732548401323,-169.8330963,0.00029753,30]
[343293585,1732548401348,-310.5783096,0.00029753,30]
[343293586,1732548401373,-153.0,0.00029753,30]
[343293587,1732548401399,-153.0,0.00029753,30]
[343293588,1732548401427,-153.0,0.00029753,30]
[343293589,1732548401453,-153.0,0.00029753,30]
[343293590,1732548401490,-236169.11199124,0.000299,30]
[343293591,1732548401552,-5992.3770657,0.000299,30]
[343293592,1732548401579,-364.22729953,0.0003,30]
[343293593,1732548401603,-154.1672609,0.0003,30]
[343293594,1732548401629,-1043.4984588,0.0003,30]
[343293595,1732548401655,-4000.0,0.0003,30]
[343293596,1732548401680,-200.0,0.0003,100]
[343293597,1732548401707,-300.0,0.00030136,120]
[343293598,1732548401731,-500.0,0.00030136,120]
[343293599,1732548401759,-500.0,0.00030136,120]
[343293600,1732548401783,-500.0,0.00030136,120]
[343293601,1732548401808,-500.0,0.00030136,120]
[343293602,1732548401831,-6250.0,0.00030137,120]
[343293603,1732548401857,-500.0,0.00030409,120]
[343293604,1732548401886,-333.39279,0.000306,120]
[343293605,1732548401911,-504.14891317,0.00030683,120]
[343293606,1732548401938,-500.0,0.00031,120]
[343293607,1732548401961,-200.0,0.00031,120]
[343293608,1732548401986,-333.39279,0.000312,120]
[343293609,1732548402015,-1000.0,0.00031506,30]
[343293610,1732548402041,-1000.0,0.00031506,30]
[343293611,1732548402066,-333.39287,0.000318,120]
[343293612,1732548402091,-500.0,0.00032,120]
[343293613,1732548402115,-200.0,0.00032,120]
[343293614,1732548402142,-199.44245824,0.000325,120]
[343293615,1732548402166,-1441.0,0.000329,30]
[343293616,1732548402191,-200.0,0.00033,120]
[343293617,1732548402214,-500.0,0.00033,30]
[343293618,1732548402238,-500.0,0.00033,30]
[343293619,1732548402269,-832.86614525,0.00033,30]
[343293620,1732548402293,-800.0,0.00033,30]
[343293621,1732548402317,-800.0,0.00033,30]
[343293622,1732548402340,-800.0,0.00033,30]
[343293623,1732548402364,-800.0,0.00033,30]
[343293624,1732548402391,-800.0,0.00033,30]
[343293625,1732548402415,-800.0,0.00033,30]
[343293626,1732548402444,-800.0,0.00033,30]
[343293627,1732548402471,-800.0,0.00033,30]
[343293628,1732548402498,-800.0,0.00033,30]
[343293629,1732548402530,-800.0,0.00033,30]
[343293630,1732548402555,-800.0,0.00033,30]
[343293631,1732548402579,-500.0,0.00033,30]
[343293632,1732548402602,-800.0,0.00033,30]
[343293633,1732548402625,-1158.90164216,0.00033,30]
[343293634,1732548402649,-800.0,0.00033,30]
[343293635,1732548402672,-500.0,0.00033,30]
[343293636,1732548402696,-915.70450381,0.00033,30]
[343293637,1732548402720,-800.0,0.00033,30]
[343293638,1732548402744,-800.0,0.00033,30]
[343293639,1732548402773,-800.0,0.00033,30]
[343293640,1732548402798,-800.0,0.00033,30]
[343293641,1732548402822,-800.0,0.00033,30]
[343293642,1732548402847,-800.0,0.00033,30]
[343293643,1732548402871,-800.0,0.00033,30]
[343293644,1732548402895,-854.68220386,0.00033,30]
[343293645,1732548402919,-800.0,0.00033,30]
[343293646,1732548402943,-2600.0,0.00033,30]
[343293647,1732548402967,-800.0,0.00033,30]
[343293648,1732548402993,-2600.0,0.00033,30]
[343293649,1732548403023,-800.0,0.00033,30]
[343293650,1732548403048,-2600.0,0.00033,30]
[343293651,1732548403073,-800.0,0.00033,30]
[343293652,1732548403097,-2600.0,0.00033,30]
[343293653,1732548403122,-1362.18889047,0.00033,30]
[343293654,1732548403146,-2600.0,0.00033,30]
[343293655,1732548403171,-2600.0,0.00033,30]
[343293656,1732548403195,-2600.0,0.00033,30]
[343293657,1732548403220,-2600.0,0.00033,30]
[343293658,1732548403245,-2600.0,0.00033,30]
[343293659,1732548403274,-700.0,0.00033,30]
[343293660,1732548403298,-2600.0,0.00033,30]
[343293661,1732548403321,-700.0,0.00033,30]
[343293662,1732548403347,-2600.0,0.00033,30]
[343293663,1732548403370,-700.0,0.00033,30]
[343293664,1732548403393,-2600.0,0.00033,30]
[343293665,1732548403418,-700.0,0.00033,30]
[343293666,1732548403440,-2600.0,0.00033,30]
[343293667,1732548403464,-700.0,0.00033,30]
[343293668,1732548403488,-4182.42325426,0.00033,30]
[343293669,1732548403623,-700.0,0.00033,30]
[343293670,1732548403648,-700.0,0.00033,30]
[343293671,1732548403672,-700.0,0.00033,30]
[343293672,1732548403699,-700.0,0.00033,30]
[343293673,1732548403722,-700.0,0.00033,30]
[343293674,1732548403746,-581.61278508,0.00033,30]
[343293675,1732548409175,300.0,0.00025,2]
[343293677,1732548416669,163.538845,0.00013973,2]
[343293698,1732548518307,333.39287,0.0002964,120]
[343293699,1732548518331,1530.96951038,0.0002964,120]
[343293702,1732548523604,150.0,0.00023,5]
[343293703,1732548525609,10159.02788223,0.000109,2]
[343293704,1732548526074,210.26549161,0.0002961,120]
[343293845,1732548634126,-160.80507585,0.00026885,2]
[343293846,1732548634137,-300.0,0.00026983,2]
[343293847,1732548634150,-35468.0,0.00026984,2]
[343293848,1732548634161,-431.859945,0.00026985,2]
[343293849,1732548634172,-1630.059501,0.00026985,2]
[343293850,1732548634183,-171.794209,0.00026985,2]
[343293851,1732548634194,-431.859946,0.00026985,2]
[343293852,1732548634204,-407.514875,0.00026985,2]
[343293853,1732548634220,-171.72144,0.00026985,2]
[343293854,1732548634231,-204.05376,0.00026985,2]
[343293855,1732548634241,-300.6210376,0.00027228,2]
[343293856,1732548634252,-431.859945,0.00027322,2]
[343293857,1732548634263,-1630.059501,0.00027322,2]
[343293858,1732548634274,-431.859946,0.00027322,2]
[343293859,1732548634284,-407.514875,0.00027322,2]
[343293860,1732548634295,-177.08999727,0.00027322,2]
[343293861,1732548634306,-431.859945,0.0002766,2]
[343293862,1732548634316,-1630.059501,0.0002766,2]
[343293863,1732548634327,-431.859946,0.0002766,2]
[343293865,1732548634337,-407.514875,0.0002766,2]
[343293867,1732548634347,-171.794209,0.0002766,2]
[343293869,1732548634358,-431.859945,0.00027997,2]
[343293871,1732548634368,-1630.059501,0.00027997,2]
[343293873,1732548634379,-431.859946,0.00027997,2]
[343293875,1732548634390,-407.514875,0.00027997,2]
[343293877,1732548634401,-6215.63466501,0.00028,2]
[343293880,1732548634412,-431.859945,0.00028334,2]
[343293882,1732548634422,-1630.059501,0.00028334,2]
[343293884,1732548634433,-431.859946,0.00028334,2]
[343293885,1732548634444,-407.514875,0.00028334,2]
[343293886,1732548634456,-171.794209,0.00028334,2]
[343293887,1732548634470,-204.05376,0.00028334,2]
[343293889,1732548634482,-829.63,0.000287,2]
[343293891,1732548634494,-300.0,0.000287,2]
[343293893,1732548634505,-158.615,0.00028751,20]
[343293896,1732548634516,-151.0,0.00028913,7]
[343293898,1732548634527,-714.04,0.0002903,10]
[343293900,1732548634538,-595.03,0.0002903,10]
[343293910,1732548634689,-495.86,0.0002903,10]
[343293911,1732548634701,-500.0,0.00029038,2]
[343293912,1732548634715,-831.82,0.00029038,2]
[343293913,1732548634726,-500.0,0.00029038,2]
[343293914,1732548634736,-810.37,0.00029038,2]
[343293915,1732548634746,-500.0,0.00029038,2]
[343293916,1732548634757,-500.0,0.00029038,2]
[343293917,1732548634767,-500.0,0.00029038,2]
[343293918,1732548634777,-500.0,0.00029038,2]
[343293919,1732548634786,-507.95,0.00029039,2]
[343293920,1732548634796,-578.73,0.00029039,2]
[343293921,1732548634805,-500.0,0.00029039,2]
[343293922,1732548634815,-500.0,0.00029039,2]
[343293923,1732548634824,-500.0,0.00029039,2]
[343293924,1732548634833,-500.0,0.00029039,2]
[343293925,1732548634843,-500.0,0.00029039,2]
[343293926,1732548634853,-572.20364236,0.00029039,2]
[343293927,1732548634864,-500.0,0.00029039,2]
[343293928,1732548634874,-500.0,0.00029039,2]
[343293929,1732548634884,-530.44377022,0.00029039,2]
[343293930,1732548634894,-500.0,0.00029039,2]
[343293931,1732548634904,-500.0,0.00029039,2]
[343293932,1732548634915,-500.77,0.00029039,2]
[343293933,1732548634925,-500.0,0.00029039,2]
[343293934,1732548634935,-500.0,0.00029039,2]
[343293935,1732548634945,-500.0,0.00029039,2]
[343293936,1732548634955,-467.21821544,0.00029039,2]
[343293937,1732548634968,-500.0,0.00029039,2]
[343293938,1732548634978,-500.0,0.00029039,2]
[343293939,1732548634988,-500.0,0.00029039,2]
[343293940,1732548634998,-500.0,0.00029039,2]
[343293941,1732548635007,-339.02,0.00029039,2]
[343293942,1732548635016,-500.0,0.00029039,2]
[343293943,1732548635026,-500.0,0.00029039,2]
[343293944,1732548635036,-500.0,0.00029039,2]
[343293945,1732548635045,-500.0,0.00029039,2]
[343293946,1732548635055,-500.0,0.00029039,2]
[343293947,1732548635065,-500.0,0.00029039,2]
[343293948,1732548635074,-619.14,0.00029039,2]
[343293949,1732548635083,-500.0,0.00029039,2]
[343293950,1732548635092,-500.0,0.00029039,2]
[343293951,1732548635102,-565.5,0.00029039,2]
[343293952,1732548635112,-500.0,0.00029039,2]
[343293953,1732548635123,-500.0,0.00029039,2]
[343293954,1732548635132,-500.0,0.00029039,2]
[343293955,1732548635142,-500.0,0.00029039,2]
[343293956,1732548635152,-500.0,0.00029039,2]
[343293957,1732548635162,-500.0,0.00029039,2]
[343293958,1732548635172,-612.98,0.00029039,2]
[343293959,1732548635182,-500.0,0.00029039,2]
[343293960,1732548635191,-500.0,0.00029039,2]
[343293961,1732548635201,-504.74,0.00029039,2]
[343293962,1732548635212,-500.0,0.00029039,2]
[343293963,1732548635224,-500.0,0.00029039,2]
[343293964,1732548635234,-626.69,0.00029039,2]
[343293965,1732548635243,-500.0,0.00029039,2]
[343293966,1732548635253,-500.0,0.00029039,2]
[343293967,1732548635263,-500.0,0.00029039,2]
[343293968,1732548635272,-500.0,0.00029039,2]
[343293969,1732548635282,-500.0,0.00029039,2]
[343293970,1732548635292,-500.0,0.00029039,2]
[343293971,1732548635301,-500.0,0.00029039,2]
[343293972,1732548635311,-500.0,0.0002904,2]
[343293973,1732548635321,-500.0,0.0002904,2]
[343293974,1732548635332,-500.0,0.0002904,2]
[343293975,1732548635341,-500.0,0.0002904,2]
[343293976,1732548635351,-500.0,0.0002904,2]
[343293977,1732548635360,-500.0,0.0002904,2]
[343293978,1732548635369,-500.0,0.0002904,2]
[343293979,1732548635379,-500.0,0.0002904,2]
[343293980,1732548635388,-500.0,0.0002904,2]
[343293981,1732548635398,-500.0,0.0002904,2]
[343293982,1732548635408,-500.0,0.0002904,2]
[343293983,1732548635419,-500.0,0.0002904,2]
[343293984,1732548635428,-500.0,0.0002904,2]
[343293985,1732548635437,-562.02,0.0002904,2]
[343293986,1732548635447,-500.0,0.0002904,2]
[343293987,1732548635457,-500.0,0.0002904,2]
[343293988,1732548635470,-500.0,0.0002904,2]
[343293989,1732548635481,-500.0,0.0002904,2]
[343293990,1732548635493,-500.0,0.0002904,2]
[343293991,1732548635503,-500.0,0.0002904,2]
[343293992,1732548635512,-500.0,0.0002904,2]
[343293993,1732548635523,-500.0,0.0002904,2]
[343293994,1732548635532,-500.0,0.0002904,2]
[343293995,1732548635542,-275.73067416,0.0002904,2]
[343293996,1732548635553,-500.0,0.0002904,2]
[343293997,1732548635564,-500.0,0.0002904,2]
[343293998,1732548635575,-500.0,0.0002904,2]
[343293999,1732548635585,-500.0,0.0002904,2]
[343294000,1732548635594,-500.0,0.0002904,2]
[343294001,1732548635605,-500.0,0.0002904,2]
[343294002,1732548635615,-500.0,0.0002904,2]
[343294003,1732548635625,-500.0,0.0002904,2]
[343294004,1732548635635,-500.0,0.0002904,2]
[343294005,1732548635646,-500.0,0.0002904,2]
[343294006,1732548635657,-500.0,0.0002904,2]
[343294007,1732548635668,-500.0,0.0002904,2]
[343294008,1732548635678,-500.0,0.0002904,2]
[343294009,1732548635687,-500.0,0.0002904,2]
[343294010,1732548635696,-500.0,0.0002904,2]
[343294011,1732548635707,-500.0,0.0002904,2]
[343294012,1732548635720,-500.0,0.0002904,2]
[343294013,1732548635730,-500.0,0.0002904,2]
[343294014,1732548635740,-500.0,0.0002904,2]
[343294015,1732548635751,-150.0,0.0002904,2]
[343294016,1732548635761,-4986.4275,0.00029235,2]
[343294017,1732548635771,-151.0,0.00029293,7]
[343294018,1732548635780,-500.0,0.0002931,2]
[343294019,1732548635790,-202.68474195,0.0002931,2]
[343294020,1732548635800,-292.98810782,0.0002931,2]
[343294021,1732548635809,-831.82,0.00029312,2]
[343294022,1732548635818,-500.0,0.00029312,2]
[343294023,1732548635828,-810.37,0.00029312,2]
[343294024,1732548635837,-500.0,0.00029312,2]
[343294025,1732548635846,-500.0,0.00029312,2]
[343294026,1732548635856,-500.0,0.00029312,2]
[343294027,1732548635865,-500.0,0.00029312,2]
[343294028,1732548635875,-500.0,0.00029313,2]
[343294029,1732548635884,-500.0,0.00029313,2]
[343294030,1732548635893,-500.0,0.00029313,2]
[343294031,1732548635903,-500.0,0.00029313,2]
[343294032,1732548635912,-383.39608508,0.00029313,2]
[343294033,1732548635922,-502.19825277,0.00029313,2]
[343294034,1732548635931,-500.0,0.00029313,2]
[343294035,1732548635941,-196.40343593,0.00029313,2]
[343294036,1732548635951,-500.0,0.00029313,2]
[343294037,1732548635961,-619.14,0.00029313,2]
[343294038,1732548635975,-500.0,0.00029313,2]
[343294039,1732548635984,-500.0,0.00029313,2]
[343294040,1732548635994,-500.0,0.00029313,2]
[343294041,1732548636005,-500.0,0.00029313,2]
[343294042,1732548636014,-500.0,0.00029313,2]
[343294043,1732548636023,-500.0,0.00029313,2]
[343294044,1732548636032,-500.0,0.00029313,2]
[343294045,1732548636042,-500.0,0.00029313,2]
[343294046,1732548636052,-500.0,0.00029314,2]
[343294047,1732548636062,-500.0,0.00029314,2]
[343294048,1732548636073,-500.0,0.00029314,2]
[343294049,1732548636082,-500.0,0.00029314,2]
[343294050,1732548636091,-500.0,0.00029314,2]
[343294051,1732548636101,-500.0,0.00029314,2]
[343294052,1732548636111,-500.0,0.00029314,2]
[343294053,1732548636121,-500.0,0.00029314,2]
[343294054,1732548636131,-501.57985819,0.00029314,2]
[343294055,1732548636140,-500.0,0.00029314,2]
[343294056,1732548636150,-425.97924216,0.00029314,2]
[343294057,1732548636160,-500.0,0.00029314,2]
[343294058,1732548636170,-555.00248832,0.00029314,2]
[343294059,1732548636180,-500.0,0.00029314,2]
[343294060,1732548636189,-500.0,0.00029314,2]
[343294061,1732548636199,-501.00348923,0.00029314,2]
[343294062,1732548636208,-500.0,0.00029314,2]
[343294063,1732548636221,-500.0,0.00029314,2]
[343294064,1732548636231,-528.24572974,0.00029314,2]
[343294065,1732548636241,-355.56353096,0.00029314,2]
[343294066,1732548636251,-500.0,0.00029314,2]
[343294067,1732548636261,-500.0,0.00029314,2]
[343294068,1732548636272,-500.0,0.00029314,2]
[343294069,1732548636282,-500.0,0.00029314,2]
[343294070,1732548636291,-170.38,0.00029314,2]
[343294071,1732548636301,-500.0,0.00029314,2]
[343294072,1732548636311,-500.0,0.00029314,2]
[343294073,1732548636320,-150.0,0.00029314,2]